Cogmind - Beta 15 @@@ ROGUE MODE // 2025.10.21 @ 13:17:13 Player: mehbruh Result: Destroyed by CI-QB2(R) with Subdweller Laser Performance ------------- Evolutions (0) 0 Regions Visited (2) 400 Robots Destroyed (36) 180 Value Destroyed (821) 821 Prototype IDs (0) 0 Alien Tech Used (0) 0 Bonus (0) 0 TOTAL SCORE: 1401 Bonus ------- None Cogmind --------- Core Integrity 0/250 Matter 107/300 Energy 171/200 System Corruption 0% Temperature Cool (6) Movement Core (950) Ox18 Location -10/Subcaves Parts ------- > --- POWER (1) -------- Subdweller Power Source > --- PROPULSION (2) --- (None) > --- UTILITY (2) ------ High-capacity Storage Unit Makeshift Kinetic Plating > --- WEAPON (2) ------- Battle Rifle Battle Rifle > --- INVENTORY (20) --- Subdweller Power Source Wheel Wheel Subdweller Monowheel Subdweller Monowheel Subdweller Monowheel Medium Matter Pod (0) Medium Matter Pod (0) Subdweller Optics Seismic Detector Riot Gun Heavy Riot Gun Medium Laser Assault Rifle Light Assault Rifle Light Assault Rifle Subdweller Machine Gun Grenade Launcher Grenade Launcher Grenade Launcher Peak State ------------ > --- POWER ------------ Subdweller Power Source > --- PROPULSION ------- Wheel Wheel > --- UTILITY ---------- High-capacity Storage Unit Makeshift Kinetic Plating > --- WEAPON ----------- Battle Rifle Battle Rifle > --- INVENTORY -------- Subdweller Power Source Wheel Wheel Subdweller Monowheel Subdweller Monowheel Subdweller Monowheel Medium Matter Pod Medium Matter Pod Subdweller Optics Seismic Detector Riot Gun Heavy Riot Gun Medium Laser Assault Rifle Light Assault Rifle Light Assault Rifle Subdweller Machine Gun Grenade Launcher Grenade Launcher Grenade Launcher [Rating: 16] Favorites ----------- Power Light Ion Engine Engine Light Ion Engine Propulsion Light Treads Treads Light Treads Wheel Wheel Utility High-capacity Storage Unit Device Seismic Detector Storage High-capacity Storage Unit Protection Light Armor Plating Weapon Grenade Launcher Energy Gun Medium Laser Ballistic Gun Light Assault Rifle Launcher Grenade Launcher Build | -11 -10 -10 ------- Run | Yrd Mat Sub Slots Evolved . | . . . Power . | . . . Propulsion . | . . . Utility . | . . . Weapon . | . . . Parts Attached 28 | 7 8 13 Power 5 | 1 1 3 Engine 5 | 1 1 3 Core . | . . . Reactor . | . . . Propulsion 5 | 2 . 3 Treads 3 | 2 . 1 Leg . | . . . Wheel 2 | . . 2 Hover . | . . . Flight . | . . . Utility 7 | 2 4 1 Device 2 | 1 1 . Storage 3 | 1 2 . Processor . | . . . Hackware . | . . . Protection 2 | . 1 1 Artifact . | . . . Weapon 11 | 2 3 6 Energy Gun 1 | . 1 . Energy Cannon . | . . . Ballistic Gun 5 | 2 1 2 Ballistic Cannon . | . . . Launcher 5 | . 1 4 Special Weapon . | . . . Impact Weapon . | . . . Slashing Weapon . | . . . Piercing Weapon . | . . . Special Melee Weapon . | . . . Unidentified Prototypes . | . . . Parts Lost 17 | . 4 13 Power 4 | . 1 3 Propulsion 5 | . . 5 Utility 2 | . 1 1 Weapon 6 | . 2 4 Highest Loss Streak 5 | . 3 5 To Critical Strikes . | . . . Average Backups 13 | 4 11 14 Power . | . 1 . Propulsion 3 | 3 2 3 Utility 2 | . 2 2 Weapon 6 | . 5 7 Tool/Special . | . . . Unused Backups 20 | . 4 16 Power 1 | . . 1 Propulsion 9 | . 4 5 Utility 3 | . . 3 Weapon 7 | . . 7 Tool/Special . | . . . Average Slot Usage (%) 95 | . 99 92 Engine 10 | . 14 8 Treads 20 | . 28 13 Wheel 7 | . . 13 Device 12 | . 13 12 Storage 14 | . 14 14 Energy Gun 5 | . 4 6 Ballistic Gun 15 | . 22 9 Launcher 7 | . 1 11 Peak Build Rating 16 | 7 8 16 Average Rating 8 | 5 7 8 On Entrance 5 | . 7 8 Naked Turns . | . . . Heaviest Build 56 | 12 49 56 Greatest Support 40 | 40 40 40 Greatest Overweight (x) 4 | . 1 4 Average Overweight (x) 1 | . . 2 Largest Inventory Capacity 20 | 8 20 20 Average Capacity 17 | 7 15 20 Most Carried 20 | 6 18 20 Average Carried 13 | 5 11 14 Final Capacity 20 | 8 20 20 Final Carried 20 | 6 18 20 Class Distribution -------------------- 100% | Mutant Dominant Class ---------------- Mutant | -10/Materials Mutant | -10/Subcaves Resources | -11 -10 -10 ----------- Run | Yrd Mat Sub Matter Collected 1309 | 214 472 623 Remotely 302 | . 272 30 Salvage Created 716 | 64 374 278 Parts 54 | 9 27 18 Haulers Intercepted . | . . . Recyclers Shooed . | . . . Parts Field Recycled . | . . . Retrieved Matter . | . . . Parts Self-Destructed 8 | . . 8 Prevented . | . . . Kills | -11 -10 -10 ------- Run | Yrd Mat Sub Combat Hostiles Destroyed 30 | . 14 16 Guns 15 | . 12 3 AOE 15 | . 2 13 Classes Destroyed 7 | 1 4 2 Worker 1 | . 1 . Tunneler 3 | 3 . . Turret 2 | . . 2 Swarmer 15 | . 8 7 Grunt 4 | . 4 . Artisan 1 | . . 1 Subdweller 11 | . 2 9 Best Kill Streak 4 | 3 3 4 Combat Bots Only 4 | . 3 4 Max Kills in Single Turn 3 | 1 2 3 Gunslinging 1 | . 1 . Exploded 3 | . 2 3 Melee . | . . . Uniques/NPCs Destroyed . | . . . Combat | -11 -10 -10 -------- Run | Yrd Mat Sub Hostile Shots Fired 169 | . 67 102 Missed 66 | . 20 46 Hits 103 | . 47 56 Projectile 103 | . 47 56 AOE 1 | . . 1 Critical Strikes 3 | . 1 2 Damage Taken 1666 | . 631 1035 Core 262 | . 87 175 Absorbed by Shields . | . . . Regen/Repaired (Parts) 111 | . 111 . Core Remaining (%) 100 | 100 . . Volleys Fired 118 | 10 39 69 Largest 2 | 2 2 2 Hottest 75 | 40 70 75 Shots Fired 218 | 20 77 121 Gun 168 | 20 76 72 Cannon . | . . . Launcher 50 | . 1 49 Special . | . . . Kinetic 130 | 20 53 57 Thermal 38 | . 23 15 Explosive 50 | . 1 49 Electromagnetic . | . . . Robot Hit Streak 13 | 3 13 11 Robot Miss Streak 3 | 2 2 3 Penetration Max . | . . . Secondary Targets 3 | . 3 . Max Gunslinging Chain 1 | . 1 . Shots Hit Robots 118 | 10 57 51 Core Hits 68 | 5 26 37 Critical Kills . | . . . Critical Parts Destroyed . | . . . Critical Strikes 1 | . 1 . Burn 1 | . 1 . Melee Attacks . | . . . Impact . | . . . Slashing . | . . . Piercing . | . . . Sneak Attacks . | . . . Combat Hostiles . | . . . Follow-up Attacks . | . . . Damage Inflicted 2915 | 109 697 2109 Guns 1094 | 100 590 404 Cannons . | . . . Explosions 1799 | . 94 1705 Melee . | . . . Ramming 22 | 9 13 . Kinetic 768 | 100 400 268 Thermal 326 | . 190 136 Explosive 1799 | . 94 1705 Electromagnetic . | . . . Impact . | . . . Slashing . | . . . Piercing . | . . . Highest Corruption . | . . . Average Corruption . | . . . Corruption Purged . | . . . Corruption Blocked . | . . . Overload Shots . | . . . Overflow Damage 44 | . . 44 Projectiles . | . . . Explosions 44 | . . 44 Melee . | . . . Knockbacks . | . . . Impact . | . . . Kinetic . | . . . Secondary . | . . . Self-Inflicted Damage 176 | . 20 156 Shots 7 | . 1 6 Rammed 5 | 1 4 . Targets Rammed 5 | 1 4 . Kicked . | . . . Crushed . | . . . Highest Temperature 223 | . 223 1 Average Temperature 76 | . 80 1 Received Heat Transfer 426 | . 138 288 Siege Activations . | . . . Martial Activations . | . . . Shielding Activations . | . . . Robots Disrupted . | . . . Combat Hostiles . | . . . Robots Corrupted . | . . . Combat Hostiles . | . . . Parts Fried . | . . . Impact Corruptions . | . . . Robots Melted . | . . . Combat Hostiles . | . . . Parts Melted 9 | . 5 4 Heat Transferred 1036 | . 629 407 Parts Sabotaged . | . . . Parts Stolen . | . . . Parts Stripped . | . . . Power Chain Reactions . | . . . Alert | -11 -10 -10 ------- Run | Yrd Mat Sub Maximum Alert Level . | . . . Low Security (%) 100 | 100 100 . Level 1 . | . . . Level 2 . | . . . Level 3 . | . . . Level 4 . | . . . Level 5 . | . . . High Security . | . . . Max Security . | . . . Peak Influence 90 | 10 90 . Initial . | . . . Average 17 | 1 18 . Influence Increases 646 | 15 306 325 Destroy 0b10 Robot/C 420 | . 240 180 Destroy 0b10 Robot/NC 20 | 15 5 . Destroy Leader 50 | . 40 10 Successful Hack 8 | . 8 . Destroy Structure 13 | . 13 . Lose Combat Pursuer 135 | . . 135 Influence Decreases 646 | 15 282 349 Entered New Map 12 | . . 12 Time Decay 514 | 15 252 247 Lost Part 120 | . 30 90 Squads Dispatched 1 | . 1 . Investigation . | . . . Extermination . | . . . Reinforcement 1 | . 1 . Assault . | . . . Garrison . | . . . Intercept . | . . . Searches Triggered . | . . . Construction Impeded . | . . . Haulers Reinforced . | . . . Active Scanning Responses . | . . . Cargo Convoy Interrupts . | . . . Stealth | -11 -10 -10 --------- Run | Yrd Mat Sub Distress Signals 1 | . 1 . Communications Jammed . | . . . Distress Signals . | . . . Times Spotted 48 | . 28 20 Peak Tracking Total 4 | . 4 4 Tactical Retreats 2 | . . 2 Traps | -11 -10 -10 ------- Run | Yrd Mat Sub Traps Triggered 2 | . . 2 Indirectly . | . . . Trap Hack Attempts . | . . . Triggered . | . . . Disarmed . | . . . Reprogrammed . | . . . Reused . | . . . Traps Extracted . | . . . Installed . | . . . Triggered . | . . . Machines | -11 -10 -10 ---------- Run | Yrd Mat Sub Machines Disabled 3 | . . 3 Max in Single Turn 2 | . . 2 Machines Repaired . | . . . Machines Dismantled . | . . . Machines Sabotaged . | . . . Overloaded Fab Kills . | . . . Hacking | -11 -10 -10 --------- Run | Yrd Mat Sub Machines Accessed 7 | . 6 1 Terminals 5 | . 5 . Fabricators . | . . . Repair Stations 1 | . 1 . Recycling Units . | . . . Scanalyzers . | . . . Garrison Access . | . . . Total Hacks 20 | . 17 3 Successful 15 | . 12 3 Failed 5 | . 5 . Catastrophic . | . . . Database Lockouts . | . . . Manual 15 | . 15 . Terminals 15 | . 15 . Fabricators . | . . . Repair Stations 2 | . 2 . Recycling Units . | . . . Scanalyzers . | . . . Garrison Access . | . . . Terminal Hacks 6 | . 3 3 Record 3 | . . 3 Robot Analysis 2 | . 2 . Locate Traps 1 | . 1 . Fabricator Hacks . | . . . Repair Station Hacks 2 | . 2 . Scan Component 1 | . 1 . Repair 1 | . 1 . Recycling Unit Hacks . | . . . Scanalyzer . | . . . Garrison Access Hacks . | . . . Unauthorized Hacks 7 | . 7 . Terminals 7 | . 7 . Botnet 2 | . 2 . Skim 5 | . 5 . Fabricators . | . . . Repair Stations . | . . . Recycling Units . | . . . Scanalyzers . | . . . Garrison Access . | . . . Data Cores Recovered . | . . . Used . | . . . Hacking Detections 6 | . 6 . Full Trace Events . | . . . Feedback Events . | . . . Feedback Blocked . | . . . Robot Schematics Acquired . | . . . Robots Built . | . . . Authchips . | . . . Time . | . . . Total Robot Build Rating . | . . . Part Schematics Acquired . | . . . Parts Built . | . . . Authchips . | . . . Time . | . . . Total Part Build Rating . | . . . Parts Repaired 1 | . 1 . Time 26 | . 26 . Parts Recycled . | . . . Recycled Matter . | . . . Retrieved Matter . | . . . Retrieved Components . | . . . Parts Scanalyzed . | . . . Part Schematics Acquired . | . . . Parts Damaged . | . . . Bothacking | -11 -10 -10 ------------ Run | Yrd Mat Sub Used RIF Installer . | . . . Robots Hacked . | . . . Non-combat . | . . . Combat . | . . . Robot Hacks Applied . | . . . Relay Couplers Released . | . . . Fabnet Peak Effective % . | . . . Robots Rewired . | . . . Allies Hacked . | . . . Hacks Repelled . | . . . Allies | -11 -10 -10 -------- Run | Yrd Mat Sub Total Allies . | . . . Largest Group . | . . . Highest-Rated Group . | . . . Highest-Rated Ally . | . . . Total Orders . | . . . Ally Attacks . | . . . Total Damage . | . . . Kills . | . . . Allies Corrupted . | . . . Allies Melted . | . . . Intel | -11 -10 -10 ------- Run | Yrd Mat Sub Active Infowar (turns) 2599 | 36 1035 1528 Seismic 2599 | 36 1035 1528 Robot Analysis Total 2 | . 2 . Derelict Logs Recovered . | . . . Drone Launches . | . . . Drone Recoveries . | . . . Exploration | -11 -10 -10 ------------- Run | Yrd Mat Sub Turns Passed 3708 | 123 1610 1975 Spaces Moved 1851 | 56 706 1089 Core 11 | 11 . . Treads 952 | 45 706 201 Legs . | . . . Wheels 888 | . . 888 Hover . | . . . Flight . | . . . Fastest Speed 50 | 50 160 110 Average Speed 167 | 138 201 147 Slowest Speed 240 | 160 240 240 Overloaded Moves . | . . . Propulsion Burnouts . | . . . Robots Hopped . | . . . Potential Cave-ins . | . . . Cave-ins Triggered . | . . . Exploration Rate (%) 55 | 4 91 70 Regions Visited 2 Branch Regions 1 Pre-discovered Areas 1 | . 1 . Known Exits Taken . | . . . Unknown Exits Taken 2 | 1 1 . Scrap Searched 2 | . . 2 Spaces Dug 31 | . . 31 Terrain Destroyed 195 | . 11 184 Melee . | . . . Projectile . | . . . AOE 195 | . 11 184 Terrain Rammed . | . . . Walls Destroyed . | . . . Machines Disabled . | . . . Actions | -11 -10 -10 --------- Run | Yrd Mat Sub Total 2238 | 80 821 1337 Wait 174 | 1 33 140 Move 1849 | 55 705 1089 Hop . | . . . Pick Up 42 | 6 21 15 Fast Attach 8 | 7 . 1 Attach 14 | . 4 10 Detach . | . . . Swap 19 | . 9 10 Drop 9 | . 6 3 Fire 118 | 10 39 69 Melee . | . . . Ram . | . . . Kick . | . . . Crush 5 | 1 4 . Escape Stasis . | . . . Rewire . | . . . Trap . | . . . Miscellaneous . | . . . Route ------- -11/Scrapyard -10/Materials (discovered 6 exits: *Mat x3 / [*Min x2] / *Sub) -10/Subcaves (discovered 3 exits: [*Mat] / [*Rec] / [*Scr]) History --------- Turn | Location | Event 12 | -11/Scrapyard | Discovered new exit (range 15) 124 | -11/Scrapyard | Entered Materials 311 | -10/Materials | Build established: Mutant 318 | -10/Materials | Discovered new exit (range 8) 494 | -10/Materials | Repaired Lgt. Treads 560 | -10/Materials | Discovered new exit (range 5) 674 | -10/Materials | Discovered new exit (range 8) 988 | -10/Materials | Discovered new exit (range 12) 1024 | -10/Materials | Derelicts attacked the area 1282 | -10/Materials | Lost 3 parts (1p1u1w) 1457 | -10/Materials | Learned location of Mines (-10) 1520 | -10/Materials | Learned location of 2 exits from Mines 1572 | -10/Materials | Learned 4 Recycling zone layouts 1613 | -10/Materials | Learned Storage stockpile data 1642 | -10/Materials | Learned 2 Storage zone layouts 1679 | -10/Materials | Identified exit to Materials 1709 | -10/Materials | Discovered new exit (range 8) 1727 | -10/Materials | Learned location of 2 exits from Materials 1734 | -10/Materials | Entered Subcaves 1735 | -10/Subcaves | Approached by a straggling Scientist 2029 | -10/Subcaves | Scientist uncovered a shortcut to Scraptown 2265 | -10/Subcaves | Discovered new exit (range 13) 2305 | -10/Subcaves | Lost 5 parts (1p2n2w) 2397 | -10/Subcaves | Ambushed by Subdweller buried in earth 2413 | -10/Subcaves | Ambushed by Subdweller buried in earth 2417 | -10/Subcaves | Ambushed by Subdweller buried in earth 2739 | -10/Subcaves | Ambushed by Subdweller buried in earth 3018 | -10/Subcaves | Discovered new exit (range 9) 3023 | -10/Subcaves | Shifting Twisted Machinery released Sub. Machine Gun 3148 | -10/Subcaves | Core integrity fell below 50% 3156 | -10/Subcaves | Core integrity fell below 20% 3253 | -10/Subcaves | Shifting Twisted Machinery released Sub. Monowheel 3264 | -10/Subcaves | Shifting Twisted Machinery released Sub. Monowheel 3341 | -10/Subcaves | Visited Clippyterm 3344 | -10/Subcaves | Learned Factory trap positions 3392 | -10/Subcaves | Shifting Twisted Machinery released Sub. Power Source 3466 | -10/Subcaves | Shifting Twisted Machinery released Mak. Kinetic Plating 3498 | -10/Subcaves | Disturbed a concealed Subdweller 3702 | -10/Subcaves | Ambushed by angry Subdweller bent on revenge 3709 | -10/Subcaves | Destroyed by CI-QB2(R) with Subdweller Laser Last Messages --------------- 03519_ Acquired Battle Rifle. 03522_ Acquired Sub. Power Source. 03528_ Subatomizers dissect the Sub. Power Source. 03528_ Acquired Hvy. Riot Gun. 03538_ Subatomizers dissect the Sub. Power Source. 03580_ IO-7E9(u) tweaks Twisted Machinery. 03613_ IO-7E9(u) builds Twisted Machinery. 03642_ IO-7E9(u) tweaks Twisted Machinery. 03677_ IO-7E9(u) builds Twisted Machinery. 03682_ IO-7E9(u) tweaks Twisted Machinery. 03695_ IO-7E9(u) cries out in pain. 03695_ IO-7E9(u) destroyed. 03701_ The unstable cave ceiling collapses. 03702_ CI-QB2(R) angrily emerges from the Twisted Machinery. 03702_ CI-QB2(R): "SUBMAD!" 03703_ Wheel destroyed. 03709_ The unstable cave ceiling collapses. Map ----- +----------------------------------------------------+ | ??????????#" ## #??????????????????????????????#" | | ???????####" #???????????????????????????""" | | ???????# " #??????????????????????????? "##" | | ???????## #?????????????????????????????#"" | | ???????## " #?????????????????????????????##" | | ???????# "" #??????????????????????????????#" | | ???????# "### #?????????????????????????????#" | | ???????# "### #?????????????????????????????## | | ???????# " ### #?????????????????????????????? | | ???????# ### ##?????????????????????????????? | | ???????# ######?????????????????????????????? | | ???????# ##?????????????????????????????????#" | | ???????# #?????????????????????????????????#? | | ???????# ##?????#######?????????????????????? | | ???????# ####### ##????????????????????? | | ???????### ### # ## #????????????????????? | | ?????????## ### ## ##???????????????????? | | ??????????# # ## ### #???????????????????? | | ??????????# ## ### #???????????????????? | | ????####?### ### ## #?###???????????????????? | | ????# ### ### #### #???????????????????????? | | ????# # #" # " ###??????????????????????? | | ????## * | # ## ## ####????????????????????? | | ????# &"##" # " ##???????????????????? | | ????# ## " #???????????????????? | | ????#### ##"# @ " #???????????????????? | | ???????# ##### R"#???????????????????? | | ???????## ## #??# # ""%"?????????????????? | | ????????##### ##??### ""|" ????????????????? | | ????????????# ###?????## " ""=" ????????????????? | | ????????????####????????####"" " ????????????????? | | ????????????????????????????## " ????????????????? | | ??????????????????????????????##?????????????????? | | ?????????????????????????????????????????????????? | | ?????????????????????????????????????????????????? | | ?????????????????????????????????????????????????? | | ?????????????????????????????????????????????????? | | ?????????????????????????????????????????????????? | | ?????????????????????????????????????????????????? | | ?????????????????????????????????????????????????? | | ?????????????????????????????????????????????????? | | ?????????????????????????????????????????????????? | | ?????????????????????????????????????????????????? | | ?????????????????????????????????????????????????? | | ?????????????????????????????????????????????????? | | ?????????????????????????????????????????????????? | | ?????????????????????????????????????????????????? | | ?????????????????????????????????????????????????? | | | | | +----------------------------------------------------+ Best States ------------- Heat Dissipation 25 Energy Generation 10 Energy Capacity 200 Matter Stores 300 Matter Capacity 300 Sight Range 16 Terrain Scan Density 10 Armor Coverage 150 Resistance: KI 10 Evasion (%) 40 Recoil Reduction 2 Item Schematics ----------------- None Robot Schematics ------------------ None Fabricated ------------ Nothing Repaired ---------- Lgt. Treads | 20% | -10/Materials Alien Tech Used ----------------- None Achievements -------------- None Challenges ------------ None Game ------ Seed BottomlessSuperchargedLegs Manual? 0 Play Time 00:24:07 Cumulative 88.8 hours Start 2025.10.21 @ 12:55:18 End 2025.10.21 @ 13:17:13 Sessions 1 Manual Loads 0 Difficulty Rogue Special Mode None Game No. 86 Rogue 86 Adventurer 0 Explorer 0 Win Type - Total 4 Types 4/0/0/0/0/0/0/0/0/0 Lore% 44 Gallery% 50 Achievement% 51 Wizard Run 0 Options --------- Layout 1 ASCII 0 Keyboard 0 Movement Arrows Keybinds 0 Fullscreen 1 Font 24/Smallcaps Map View 50x35 Zoom Use 0% Tactical HUD 1 Map Filters NONE Filters NONE Steam 1 RUN: bcd883be-8eba-460c-af9f-b3ae9d28d780